lending/lending_fUSD_20240605
["ID","MTS","AMOUNT","RATE_DAILY","PERIOD"]
[328618186,1717618251322,-664.97400089,0.00029997,4]
[328618189,1717618251335,-303.20599911,0.00029997,4]
[328618191,1717618251344,-500.0,0.00029997,4]
[328618193,1717618251353,-500.0,0.00029997,4]
[328618194,1717618251362,-524.85619475,0.00029997,4]
[328618196,1717618251372,-645.99668131,0.00029997,4]
[328618199,1717618251381,-363.47651841,0.00029997,4]
[328618200,1717618251391,-500.0,0.00029997,4]
[328618203,1717618251400,-500.0,0.00029997,4]
[328618205,1717618251410,-500.0,0.00029997,4]
[328618207,1717618251419,-500.0,0.00029997,4]
[328618209,1717618251429,-500.0,0.00029997,4]
[328618211,1717618251439,-500.0,0.00029997,4]
[328618213,1717618251449,-500.0,0.00029997,4]
[328618215,1717618251459,-500.0,0.00029997,4]
[328618216,1717618251469,-500.0,0.00029997,4]
[328618217,1717618251479,-500.0,0.00029997,4]
[328618218,1717618251488,-500.0,0.00029997,4]
[328618219,1717618251498,-500.0,0.00029997,4]
[328618220,1717618251508,-500.0,0.00029997,4]
[328618221,1717618251519,-500.0,0.00029997,4]
[328618222,1717618251529,-686.43,0.00029997,4]
[328618223,1717618251539,-686.43,0.00029997,4]
[328618224,1717618251549,-500.0,0.00029997,4]
[328618225,1717618251559,-500.0,0.00029997,4]
[328618226,1717618251569,-500.0,0.00029997,4]
[328618227,1717618251579,-500.0,0.00029997,4]
[328618228,1717618251588,-500.0,0.00029997,4]
[328618229,1717618251598,-500.0,0.00029997,4]
[328618230,1717618251608,-568.35,0.00029997,4]
[328618231,1717618251617,-568.35,0.00029997,4]
[328618232,1717618251626,-500.0,0.00029997,4]
[328618233,1717618251636,-245.91607142,0.00029997,4]
[328618234,1717618251648,-254.08392858,0.00029997,4]
[328618235,1717618251658,-24.8175537,0.00029997,4]
[328618236,1717618251670,-565.91948672,0.00029997,4]
[328618237,1717618251680,-500.0,0.00029997,4]
[328618239,1717618251689,-540.39945253,0.00029997,4]
[328618241,1717618251699,-1023.09657885,0.00029997,4]
[328618243,1717618251710,-419.16342115,0.00029997,4]
[328618245,1717618251720,-1442.26,0.00029997,4]
[328618247,1717618251730,-784.88,0.00029997,4]
[328618249,1717618251739,-784.88,0.00029997,4]
[328618251,1717618251748,-410.84867309,0.00029997,4]
[328618253,1717618251761,-89.15132691,0.00029997,4]
[328618254,1717618251770,-500.0,0.00029997,4]
[328618255,1717618251780,-319.16951705,0.00029997,4]
[328618256,1717618251792,-180.83048295,0.00029997,4]
[328618257,1717618251802,-500.0,0.00029997,4]
[328618258,1717618251811,-687.36,0.00029997,4]
[328618259,1717618251820,-687.36,0.00029997,4]
[328618260,1717618251830,-2545.53,0.00029997,4]
[328618261,1717618251839,-2545.53,0.00029997,4]
[328618262,1717618251849,-500.0,0.00029997,4]
[328618263,1717618251858,-951.38,0.00029997,4]
[328618264,1717618251867,-951.38,0.00029997,4]
[328618265,1717618251876,-500.0,0.00029997,4]
[328618266,1717618251886,-500.0,0.00029997,4]
[328618267,1717618251896,-500.0,0.00029997,4]
[328618268,1717618251905,-500.0,0.00029997,4]
[328618269,1717618251915,-500.0,0.00029997,4]
[328618270,1717618251924,-500.0,0.00029997,4]
[328618271,1717618251934,-500.0,0.00029997,4]
[328618272,1717618251943,-573.17,0.00029997,4]
[328618273,1717618251952,-573.17,0.00029997,4]
[328618274,1717618251962,-1358.75,0.00029997,4]
[328618275,1717618251972,-1358.75,0.00029997,4]
[328618276,1717618251981,-1052.52,0.00029997,4]
[328618277,1717618251991,-1052.52,0.00029997,4]
[328618278,1717618252001,-500.0,0.00029997,4]
[328618279,1717618252011,-500.0,0.00029997,4]
[328618280,1717618252020,-617.99021409,0.00029997,4]
[328618281,1717618252029,-500.0,0.00029997,4]
[328618282,1717618252039,-500.0,0.00029997,4]
[328618283,1717618252049,-500.0,0.00029997,4]
[328618284,1717618252059,-4236.53,0.00029997,4]
[328618285,1717618252068,-4236.53,0.00029997,4]
[328618286,1717618252078,-500.0,0.00029997,4]
[328618287,1717618252088,-500.0,0.00029997,4]
[328618288,1717618252097,-500.0,0.00029997,4]
[328618289,1717618252107,-500.0,0.00029997,4]
[328618290,1717618252120,-527.73,0.00029997,4]
[328618291,1717618252130,-500.0,0.00029997,4]
[328618292,1717618252139,-288.7,0.00029997,4]
[328618293,1717618252149,-1293.76,0.00029997,4]
[328618294,1717618252158,-1293.76,0.00029997,4]
[328618295,1717618252168,-1948.67,0.00029997,4]
[328618296,1717618252178,-1948.67,0.00029997,4]
[328618297,1717618252187,-500.0,0.00029997,4]
[328618298,1717618252199,-500.0,0.00029997,4]
[328618299,1717618252210,-1089.54,0.00029997,4]
[328618300,1717618252219,-500.0,0.00029997,4]
[328618301,1717618252229,-1089.54,0.00029997,4]
[328618302,1717618252238,-500.0,0.00029997,4]
[328618303,1717618252248,-500.0,0.00029997,4]
[328618304,1717618252257,-500.0,0.00029997,4]
[328618305,1717618252268,-1946.74,0.00029997,4]
[328618306,1717618252278,-500.0,0.00029997,4]
[328618307,1717618252287,-1946.74,0.00029997,4]
[328618308,1717618252297,-500.0,0.00029997,4]
[328618309,1717618252306,-5598.89,0.00029997,4]
[328618310,1717618252315,-500.0,0.00029997,4]
[328618311,1717618252325,-500.0,0.00029997,4]
[328618312,1717618252335,-1171.59,0.00029997,4]
[328618313,1717618252345,-1171.59,0.00029997,4]
[328618314,1717618252354,-500.0,0.00029997,4]
[328618315,1717618252364,-500.0,0.00029997,4]
[328618316,1717618252374,-500.0,0.00029997,4]
[328618317,1717618252383,-500.0,0.00029997,4]
[328618318,1717618252393,-500.0,0.00029997,4]
[328618319,1717618252403,-2380.68,0.00029997,4]
[328618320,1717618252412,-2380.68,0.00029997,4]
[328618321,1717618252422,-829.9,0.00029997,4]
[328618322,1717618252431,-829.9,0.00029997,4]
[328618323,1717618252441,-500.0,0.00029997,4]
[328618324,1717618252451,-500.0,0.00029997,4]
[328618325,1717618252460,-500.0,0.00029997,4]
[328618326,1717618252470,-500.0,0.00029997,4]
[328618327,1717618252480,-500.0,0.00029997,4]
[328618328,1717618252489,-376.8708357,0.00029997,4]
[328618329,1717618252498,-146.72866556,0.00029997,4]
[328618330,1717618252512,-353.27133444,0.00029997,4]
[328618331,1717618252521,-22.80947218,0.00029997,4]
[328618332,1717618252532,-348.76233794,0.00029997,4]
[328618333,1717618252543,-63.35669369,0.00029997,4]
[328618334,1717618252553,-877.44,0.00029997,4]
[328618335,1717618252563,-877.44,0.00029997,4]
[328618336,1717618252572,-500.0,0.00029997,4]
[328618337,1717618252582,-375.45210931,0.00029997,4]
[328618338,1717618252591,-500.0,0.00029997,4]
[328618339,1717618252600,-500.0,0.00029997,4]
[328618340,1717618252609,-500.0,0.00029997,4]
[328618341,1717618252620,-150.01,0.00029998,2]
[328618342,1717618252629,-345.31964735,0.00029998,2]
[328618343,1717618252639,-1803.93057379,0.00029998,2]
[328618344,1717618252650,-4286.86690961,0.00029998,2]
[328618345,1717618252660,-205.49265367,0.00029998,2]
[328618346,1717618252669,-155.0,0.00029998,2]
[328618347,1717618252678,-481.6174682,0.00029998,2]
[328618348,1717618252687,-217.26605951,0.00029998,2]
[328618349,1717618252696,-266.92479324,0.00029998,2]
[328618350,1717618252706,-187.46921704,0.00029998,2]
[328618351,1717618252717,-480.07899143,0.00029998,2]
[328618352,1717618252727,-200.0,0.00029998,2]
[328618353,1717618252738,-1614.27438413,0.00029998,2]
[328618354,1717618252751,-1899.99999999,0.00029998,2]
[328618355,1717618252763,-1765.04961826,0.00029998,2]
[328618356,1717618252779,-269.63199999,0.00028498,2]
[328618357,1717618252838,155.0,0.00017259,2]
[328618358,1717618252905,-949.65,0.00028498,2]
[328618359,1717618252917,-791.31905364,0.00028498,2]
[328618360,1717618252927,-1952.42,0.00029378,4]
[328618361,1717618252938,-1952.42,0.00029378,4]
[328618362,1717618252948,-500.0,0.00029379,4]
[328618363,1717618252957,-151.0,0.000295,7]
[328618364,1717618252967,-1952.42,0.0002962,4]
[328618365,1717618252977,-11653.58057379,0.000297,2]
[328618366,1717618252987,-1952.42,0.00029898,4]
[328618367,1717618252996,-1952.42,0.00029975,4]
[328618368,1717618253006,-1952.42,0.00029991,4]
[328618369,1717618253026,-1952.42,0.00029996,4]
[328618370,1717618253037,-1511.74354738,0.00029998,2]
[328618371,1717618253047,-155.4300837,0.00029998,2]
[328618372,1717618253057,-3041.48674149,0.00029998,2]
[328618373,1717618253075,-1958.51325851,0.00029998,2]
[328618374,1717618253085,-200.55322368,0.00029998,2]
[328618375,1717618253095,-1113.28864199,0.00029998,2]
[328618376,1717618253106,-1082.67573678,0.00029998,2]
[328618377,1717618253120,-241.39477687,0.00029998,2]
[328618378,1717618253130,-186.63588615,0.00029998,2]
[328618379,1717618253140,-877.73264139,0.00029998,3]
[328618380,1717618253150,-156.46779989,0.00029998,7]
[328618381,1717618253162,-1799.44005259,0.00029998,2]
[328618382,1717618253172,-224.99281109,0.00029998,2]
[328618383,1717618253181,-200.26393988,0.00029998,2]
[328618384,1717618253191,-325.53303523,0.00029998,2]
[328618385,1717618253201,-155.0,0.00029998,2]
[328618386,1717618253211,-572.59800727,0.00029998,2]
[328618387,1717618253365,-264.208,0.00029998,2]
[328618388,1717618253377,-953.62985064,0.00029998,2]
[328618389,1717618253387,-190.70283289,0.00029998,2]
[328618390,1717618253397,-325.22573506,0.00029998,2]
[328618391,1717618253406,-415.60857681,0.00029998,2]
[328618392,1717618253459,-19618.76557597,0.00029998,2]
[328618393,1717618253468,-155.0,0.00029998,2]
[328618394,1717618253477,-211.25827532,0.00029998,2]
[328618395,1717618253487,-14205.48765662,0.00029998,2]
[328618396,1717618253499,-2453.25122604,0.00029998,2]
[328618397,1717618253510,-4045.83117806,0.00029998,2]
[328618398,1717618253601,-296.89195503,0.00029998,2]
[328618399,1717618253613,-459.4508895,0.00029998,2]
[328618400,1717618253641,-470.05543774,0.00029379,4]
[328618401,1717618253653,-29.94456226,0.00029379,4]
[328618402,1717618253663,-151.0,0.00029622,7]
[328618403,1717618253672,-1757.50543774,0.00029998,2]
[328618404,1717618253684,-647.88682808,0.00029998,2]
[328618405,1717618253706,-3390.62049549,0.00029998,2]
[328618406,1717618253905,226.57668191,0.00022499,2]
[328618407,1717618256105,1222.05886366,0.00017258,2]
[328618408,1717618267418,226.57668191,0.00022497,2]
[328618409,1717618293422,226.57668191,0.00022497,2]
[328618410,1717618311264,155.0,0.00017259,2]
[328618414,1717618313413,226.57668191,0.00022497,2]
[328618415,1717618338877,155.0,0.00017259,2]
[328618416,1717618339414,226.57668191,0.00022497,2]
[328618418,1717618591606,97785.08520553,0.00024534,13]
[328618422,1717618719437,206.11,0.0001366,2]
[328618423,1717618741664,289.73525073,0.0001366,2]
[328618424,1717618748836,20258.09102943,0.0001366,2]
[328618425,1717618755674,289.73525073,0.0001366,2]
[328618426,1717618762804,20258.09102943,0.0001366,2]
[328618427,1717618775689,289.73525073,0.0001366,2]
[328618428,1717618780818,15549.24985548,0.0001366,2]
[328618429,1717618809169,-176.371291,0.00014298,2]
[328618430,1717618809191,-338.10237876,0.00014298,2]
[328618431,1717618809213,-2366.9955033,0.00014299,2]
[328618432,1717618809235,-365.23595949,0.000143,2]
[328618433,1717618809256,-3177.24625531,0.00014301,2]
[328618434,1717618809278,-773.710928,0.00014302,2]
[328618435,1717618809299,-161.86,0.0001448,2]
[328618436,1717618809325,-625.70433105,0.00016839,2]
[328618437,1717618809361,-3098.55907664,0.0001684,2]
[328618438,1717618809390,-1066.86599008,0.0001684,2]
[328618439,1717618809419,-1261.41,0.00016841,2]
[328618440,1717618811664,1276.26411755,0.00014297,2]
[328618441,1717618827213,-1248.31846585,0.00017157,2]
[328618442,1717618827235,-6082.95,0.00017158,2]
[328618443,1717618827260,-150.99,0.00017158,2]
[328618444,1717618827280,-5781.96,0.00017158,2]
[328618445,1717618827301,-326.51,0.00017158,2]
[328618446,1717618827326,-177.40726583,0.00017159,2]
[328618447,1717618827346,-150.0,0.00017246,2]
[328618448,1717618827368,-2373.46,0.00017247,2]
[328618449,1717618827389,-499.99,0.00017247,2]
[328618450,1717618827411,-1341.49,0.00017247,2]
[328618451,1717618827432,-8702.03612151,0.00017249,2]
[328618452,1717618827454,-152.19,0.00017249,2]
[328618453,1717618827476,-690721.73148286,0.00017258,2]
[328618454,1717618827498,-155.07582461,0.00017259,2]
[328618455,1717618827519,-8813.92644023,0.00017259,2]
[328618456,1717618827540,-155.0,0.00017259,2]
[328618457,1717618827723,-185222.51001625,0.00017259,2]
[328618458,1717618827746,-734.41,0.00017276,2]
[328618459,1717618827769,-166.81,0.00017412,2]
[328618460,1717618827791,-201.53,0.00017467,2]
[328618461,1717618827813,-537.34426648,0.00017793,2]
[328618462,1717618827836,-152.19,0.00017794,2]
[328618463,1717618827860,-263.62581916,0.00017804,2]
[328618464,1717618827883,-8415.28893931,0.00017804,2]
[328618465,1717618827904,-10968.56338147,0.00017804,2]
[328618466,1717618827927,-4440.92771501,0.00017805,2]
[328618467,1717618827948,-155.0,0.00017807,2]
[328618468,1717618827970,-296.58359376,0.00017807,2]
[328618469,1717618827995,-7534.86291177,0.00017807,2]
[328618470,1717618828015,-2000.0,0.00017864,3]
[328618471,1717618828037,-2220.02,0.00017931,2]
[328618472,1717618829662,317.60459171,0.00017159,2]
[328618473,1717618829758,1075.48722069,0.00017058,2]
[328618474,1717618842056,862.13999275,0.00017259,2]
[328618475,1717618842716,1794.28590216,0.00017259,2]
[328618478,1717619241284,-625.70433105,0.0001895,2]
[328618479,1717619241307,-24.08627951,0.00018951,2]
[328618480,1717619244149,-175.91372049,0.00018951,2]
[328618481,1717619244170,-3890.25994623,0.000192,2]
[328618482,1717619244190,-257.8719227,0.0002,2]
[328618483,1717619244211,-1085.29016655,0.0002,2]
[328618484,1717619275312,296.58359376,0.00017807,2]
[328618489,1717619336099,491.32769436,0.00017259,2]
[328618490,1717619354106,-263.62581916,0.00019449,2]
[328618491,1717619354128,-1248.31846585,0.0001945,2]
[328618492,1717619354148,-761.37983345,0.0002,2]
[328618493,1717619354170,-24111.32288154,0.0002,2]
[328618494,1717619356114,-8132.76364256,0.0002,2]
[328618495,1717619356139,-155.0,0.0002,2]
[328618496,1717619356161,-206.11,0.0002049,2]
[328618497,1717619356189,-1994.0,0.000215,3]
[328618498,1717619356212,-499.99,0.00021899,2]
[328618499,1717619356235,-1000.0,0.000219,2]
[328618500,1717619358707,-713.42,0.00022244,2]
[328618501,1717619358732,-14064.0074769,0.00022497,2]
[328618502,1717619358754,-233.43894078,0.00023,2]
[328618503,1717619358777,-239.939221,0.00023014,2]
[328618504,1717619358799,-250.0,0.00023777,2]
[328618505,1717619358821,-768.21,0.00023785,2]
[328618506,1717619360164,-947.00229274,0.00023798,2]
[328618507,1717619364063,226.57668191,0.000201,2]
[328618509,1717619371158,-6889.0423,0.00023798,2]
[328618510,1717619372118,-13516.1561799,0.00023798,2]
[328618511,1717619376072,226.57668191,0.00022499,2]
[328618512,1717619392060,226.57668191,0.00022499,2]
[328618513,1717619410067,226.57668191,0.00022499,2]
[328618514,1717619430223,215.945299,0.00022466,2]
[328618515,1717619431411,-1456.34099637,0.00023798,2]
[328618516,1717619431425,-765.897738,0.00023798,2]
[328618517,1717619431438,-325.56049299,0.00023798,2]
[328618518,1717619431448,-343.94,0.00023805,2]
[328618519,1717619431458,-1000.0,0.0002381,2]
[328618520,1717619431467,-18.90132669,0.00023894,2]
[328618521,1717619431634,-0.24037172,0.00023894,2]
[328618522,1717619431651,-1897.68830159,0.00023894,2]
[328618523,1717619431662,-432.6,0.00023953,2]
[328618524,1717619431671,-150.0,0.00023966,2]
[328618525,1717619431681,-500.0,0.0002401,2]
[328618526,1717619431690,-411.54,0.00024025,2]
[328618527,1717619431699,-250.0,0.00024049,2]
[328618528,1717619431709,-500.0,0.00024069,2]
[328618529,1717619431719,-160.94,0.00024384,2]
[328618530,1717619431729,-234.24003402,0.00024434,2]
[328618531,1717619431739,-713.42,0.00024508,2]
[328618532,1717619431750,-220.67,0.00024514,2]
[328618533,1717619431759,-446.60502179,0.00024534,2]
[328618534,1717619431770,-5345.2,0.00024578,2]
[328618535,1717619431780,-250.0,0.00024593,2]
[328618538,1717619431791,-154.87,0.00024593,2]
[328618539,1717619431800,-647.0,0.000247,2]
[328618541,1717619431810,-250.0,0.000247,7]
[328618544,1717619431823,-742.49,0.00024779,2]
[328618546,1717619431833,-1250.0,0.00025,2]
[328618548,1717619431843,-2361.38,0.00025111,2]
[328618550,1717619431852,-639.36,0.00025193,2]
[328618552,1717619431863,-639.36,0.00025262,2]
[328618555,1717619431873,-639.36,0.00025331,2]
[328618558,1717619431882,-639.36,0.000254,2]
[328618561,1717619431892,-639.36,0.00025469,2]
[328618564,1717619431901,-639.36,0.00025538,2]
[328618567,1717619431911,-200.0,0.00025604,2]
[328618570,1717619431921,-639.36,0.00025607,2]
[328618573,1717619431931,-639.36,0.00025676,2]
[328618577,1717619431940,-639.36,0.00025746,2]
[328618579,1717619431950,-639.36,0.00025815,2]
[328618582,1717619431959,-639.36,0.00025884,2]
[328618586,1717619431969,-155.6,0.00025914,2]
[328618588,1717619431979,-155.6,0.0002593,2]
[328618590,1717619431988,-155.6,0.00025946,2]
[328618591,1717619431998,-639.36,0.00025953,2]
[328618594,1717619432008,-155.6,0.00025962,2]
[328618596,1717619432018,-155.6,0.00025979,2]
[328618598,1717619432028,-155.6,0.00025995,2]
[328618600,1717619432038,-155.6,0.00026011,2]
[328618602,1717619432048,-639.36,0.00026022,2]
[328618604,1717619432058,-155.6,0.00026027,2]
[328618605,1717619432067,-155.6,0.00026043,2]
[328618606,1717619432077,-639.36,0.00026091,2]
[328618607,1717619432086,-166.81,0.00026119,2]
[328618608,1717619432096,-639.36,0.0002616,2]
[328618609,1717619432105,-639.36,0.00026229,2]
[328618610,1717619432115,-639.36,0.00026298,2]
[328618611,1717619432124,-639.36,0.00026367,2]
[328618612,1717619432134,-639.36,0.00026436,2]
[328618613,1717619432143,-639.36,0.00026506,2]
[328618614,1717619432153,-1916.83,0.00026634,2]
[328618615,1717619432162,-172.26,0.00026709,2]
[328618616,1717619432172,-713.42,0.00026772,2]
[328618617,1717619432182,-1000.0,0.00026786,2]
[328618618,1717619432191,-155.81209745,0.00026998,2]
[328618619,1717619432201,-1300.0,0.00027,2]
[328618620,1717619432210,-186.31,0.00027222,2]
[328618621,1717619432220,-588.13039023,0.00027297,2]
[328618622,1717619432229,-500.0,0.00027397,4]
[328618623,1717619432239,-500.0,0.00027397,4]
[328618624,1717619432248,-429.0840831,0.00027397,4]
[328618625,1717619432258,-500.0,0.00027397,4]
[328618626,1717619432269,-500.0,0.00027397,4]
[328618627,1717619432278,-500.0,0.00027397,4]
[328618628,1717619432287,-500.0,0.00027397,4]
[328618629,1717619432298,-500.0,0.00027397,4]
[328618631,1717619432307,-500.0,0.00027397,4]
[328618633,1717619432316,-500.0,0.00027397,4]
[328618635,1717619432326,-205.6,0.00027397,4]
[328618637,1717619432335,-500.0,0.00027397,4]
[328618639,1717619432344,-607.53,0.00027397,4]
[328618641,1717619432354,-500.0,0.00027397,4]
[328618643,1717619432363,-500.0,0.00027397,4]
[328618645,1717619432373,-500.0,0.00027397,4]
[328618647,1717619432382,-500.0,0.00027397,4]
[328618649,1717619432391,-617.47,0.00027397,4]
[328618651,1717619432400,-505.14206202,0.00027397,4]
[328618653,1717619432409,-500.0,0.00027397,4]
[328618655,1717619432418,-500.0,0.00027397,4]
[328618657,1717619432427,-500.0,0.00027397,4]
[328618659,1717619432437,-1071.58165457,0.00027397,4]
[328618661,1717619432447,-500.0,0.00027397,4]
[328618663,1717619432457,-500.0,0.00027397,4]
[328618665,1717619432466,-517.48,0.00027397,4]
[328618667,1717619432476,-512.99205102,0.00027397,4]
[328618669,1717619432491,-521.14338851,0.00027397,4]
[328618671,1717619432499,-500.0,0.00027397,4]
[328618673,1717619432508,-500.0,0.00027397,4]
[328618675,1717619432518,-500.0,0.00027397,4]
[328618677,1717619432529,-500.0,0.00027397,4]
[328618679,1717619432540,-255.03,0.00027397,4]
[328618682,1717619432550,-470.04026121,0.00027397,4]
[328618683,1717619432559,-500.0,0.00027397,4]
[328618686,1717619432571,-86.23350756,0.00027397,4]
[328618688,1717619432588,-580.04649244,0.00027397,4]
[328618690,1717619432598,-574.85,0.00027397,4]
[328618692,1717619432607,-666.28,0.00027397,4]
[328618695,1717619432616,-172.712701,0.00027397,4]
[328618696,1717619432627,-264.00369996,0.00027397,4]
[328618697,1717619432666,226.57668191,0.00022499,2]
[328618698,1717619432704,215.945299,0.00023288,2]
[328618704,1717619437437,-215.945299,0.0002411,2]
[328618705,1717619437447,-215.945299,0.00024932,2]
[328618706,1717619437457,-2407.06195,0.0002726,2]
[328618707,1717619437466,-296.58359376,0.00027296,2]
[328618708,1717619437476,-229.56359904,0.00027397,4]
[328618709,1717619437490,-666.28,0.00027397,4]
[328618710,1717619437499,-500.0,0.00027397,4]
[328618711,1717619437509,-500.0,0.00027397,4]
[328618712,1717619437519,-500.0,0.00027397,4]
[328618713,1717619437528,-500.0,0.00027397,4]
[328618714,1717619437538,-500.0,0.00027397,4]
[328618715,1717619437550,-500.0,0.00027397,4]
[328618716,1717619437561,-500.0,0.00027397,4]
[328618717,1717619437571,-236.54396802,0.00027397,4]
[328618718,1717619437580,-500.0,0.00027397,4]
[328618719,1717619437589,-500.0,0.00027397,4]
[328618720,1717619437598,-500.0,0.00027397,4]
[328618721,1717619437607,-436.31,0.00027397,4]
[328618722,1717619437616,-451.64947409,0.00027397,4]
[328618723,1717619437629,-118.68052591,0.00027397,4]
[328618724,1717619437638,-500.0,0.00027397,4]
[328618725,1717619437647,-185.76159659,0.00027397,4]
[328618726,1717619437659,-314.23840341,0.00027397,4]
[328618727,1717619437668,-551.69,0.00027397,4]
[328618728,1717619437678,-500.0,0.00027397,4]
[328618729,1717619437687,-500.0,0.00027397,4]
[328618730,1717619437697,-133.38109687,0.00027397,4]
[328618741,1717619438502,-389.01890313,0.00027397,4]
[328618742,1717619438511,-500.0,0.00027397,4]
[328618743,1717619438521,-521.9361601,0.00027397,4]
[328618744,1717619438531,-638.36,0.00027397,4]
[328618745,1717619438541,-500.0,0.00027397,4]
[328618746,1717619438553,-320.06,0.00027397,4]
[328618747,1717619438564,-520.32,0.00027397,4]
[328618748,1717619438574,-500.0,0.00027397,4]
[328618749,1717619438584,-500.0,0.00027397,4]
[328618750,1717619438594,-500.0,0.00027397,4]
[328618751,1717619438603,-460.92103835,0.00027397,4]
[328618752,1717619438613,-500.0,0.00027397,4]
[328618753,1717619438622,-500.0,0.00027397,4]
[328618754,1717619438632,-500.0,0.00027397,4]
[328618755,1717619438642,-331.18,0.00027397,4]
[328618756,1717619438651,-500.0,0.00027397,4]
[328618757,1717619438661,-500.0,0.00027397,4]
[328618758,1717619438671,-131.88630842,0.00027397,4]
[328618759,1717619438692,-368.11369158,0.00027397,4]
[328618760,1717619438702,-299.65102879,0.00027397,4]
[328618761,1717619438714,-217.08897121,0.00027397,4]
[328618762,1717619438724,-109.73323135,0.00027397,4]
[328618763,1717619438735,-390.26676865,0.00027397,4]
[328618764,1717619438745,-220.42,0.00027397,4]
[328618765,1717619438755,-59.62652751,0.00027397,4]
[328618766,1717619438767,-440.37347249,0.00027397,4]
[328618767,1717619438778,-514.06,0.00027397,4]
[328618768,1717619438787,-500.0,0.00027397,4]
[328618769,1717619438799,-647.72,0.00027397,4]
[328618770,1717619438809,-523.0,0.00027397,4]
[328618771,1717619438819,-581.54014526,0.00027397,4]
[328618772,1717619438829,-961.51,0.00027397,4]
[328618773,1717619438839,-961.51,0.00027397,4]
[328618774,1717619438848,-961.51,0.00027397,4]
[328618775,1717619438861,-961.51,0.00027397,4]
[328618776,1717619438871,-500.0,0.00027397,4]
[328618777,1717619438880,-592.44,0.00027397,4]
[328618778,1717619438893,-153.66,0.00027397,4]
[328618779,1717619438903,-554.83,0.00027397,4]
[328618780,1717619438913,-500.0,0.00027397,4]
[328618781,1717619438922,-184.32,0.00027397,4]
[328618782,1717619438931,-500.0,0.00027397,4]
[328618783,1717619438941,-500.0,0.00027397,4]
[328618784,1717619438952,-504.91681672,0.00027397,4]
[328618785,1717619438962,-500.0,0.00027397,4]
[328618786,1717619438972,-154.04,0.00027397,4]
[328618787,1717619438982,-500.0,0.00027397,4]
[328618788,1717619438992,-197.57,0.00027397,4]
[328618789,1717619439001,-500.0,0.00027397,4]
[328618790,1717619439011,-500.0,0.00027397,4]
[328618791,1717619439021,-500.0,0.00027397,4]
[328618792,1717619439031,-500.0,0.00027397,4]
[328618793,1717619439041,-175.63,0.00027397,4]
[328618794,1717619439054,-500.0,0.00027397,4]
[328618795,1717619439064,-500.0,0.00027397,4]
[328618796,1717619439075,-500.0,0.00027397,4]
[328618797,1717619439085,-500.0,0.00027397,4]
[328618798,1717619439096,-500.0,0.00027397,4]
[328618799,1717619439106,-500.0,0.00027397,4]
[328618800,1717619439116,-500.0,0.00027397,4]
[328618801,1717619439126,-500.0,0.00027397,4]
[328618802,1717619439136,-500.0,0.00027397,4]
[328618803,1717619439147,-506.24896738,0.00027397,4]
[328618804,1717619439157,-500.0,0.00027397,4]
[328618805,1717619439167,-215.6,0.00027397,4]
[328618806,1717619439177,-500.0,0.00027397,4]
[328618807,1717619439187,-260.07,0.00027397,4]
[328618808,1717619439197,-500.0,0.00027397,4]
[328618809,1717619439207,-500.0,0.00027397,4]
[328618810,1717619439217,-500.0,0.00027397,4]
[328618811,1717619439227,-500.0,0.00027397,4]
[328618812,1717619439236,-500.0,0.00027397,4]